Cogmind - Beta 9.1 @@@ ROGUE MODE // 2019.11.05 @ 09:58:59 Player: MrPainting Result: Destroyed self with Rocket Launcher Performance ------------- Evolutions (0) 0 Regions Visited (2) 400 Robots Destroyed (9) 45 Value Destroyed (1) 1 Prototype IDs (0) 0 Alien Tech Used (0) 0 Bonus (0) 0 TOTAL SCORE: 446 Bonus ------- None Cogmind --------- Core Integrity 0/250 Matter 157/300 Energy 84/100 System Corruption 3% Temperature Cool (0) Location -10/Mines Parts ------- Power (1) Propulsion (2) Utility (2) Weapon (2) Rocket Launcher Inventory (4) Large Storage Unit Large Storage Unit Beam Cannon Peak State ------------ Power Ion Engine Propulsion Aluminum Leg Aluminum Leg Utility Large Storage Unit Weapon Light Assault Rifle Light Assault Rifle Inventory Large Storage Unit Grenade Launcher [Rating: 6] Favorites ----------- Power Ion Engine Engine Ion Engine Propulsion Aluminum Leg Leg Aluminum Leg Utility Large Storage Unit Storage Large Storage Unit Weapon Light Assault Rifle Energy Cannon Beam Cannon Ballistic Gun Light Assault Rifle Launcher Grenade Launcher Build | -11 -10 -10 ------- Run | Scr Mat Min Slots Evolved . | . . . Power . | . . . Propulsion . | . . . Utility . | . . . Weapon . | . . . Parts Attached 10 | 4 3 3 Power 1 | . 1 . Engine 1 | . 1 . Core . | . . . Reactor . | . . . Propulsion 2 | 2 . . Treads . | . . . Leg 2 | 2 . . Wheel . | . . . Hover . | . . . Flight . | . . . Utility 1 | . 1 . Device . | . . . Storage 1 | . 1 . Processor . | . . . Hackware . | . . . Protection . | . . . Artifact . | . . . Weapon 6 | 2 1 3 Energy Gun . | . . . Energy Cannon 1 | . 1 . Ballistic Gun 3 | 2 . 1 Ballistic Cannon . | . . . Launcher 2 | . . 2 Special Weapon . | . . . Impact Weapon . | . . . Slashing Weapon . | . . . Piercing Weapon . | . . . Special Melee Weapon . | . . . Unidentified Prototypes . | . . . Parts Lost 6 | . . 6 Power 1 | . . 1 Propulsion 2 | . . 2 Utility . | . . . Weapon 3 | . . 3 Highest Loss Streak 6 | . . 6 Average Slot Usage (%) 76 | . 68 79 Engine 10 | . 5 12 Leg 26 | . 28 25 Storage 11 | . 5 13 Energy Cannon 9 | . 5 11 Ballistic Gun 15 | . 22 13 Launcher 1 | . . 1 Naked Turns . | . . . Heaviest Build 25 | 2 25 25 Greatest Support 20 | 10 20 20 Greatest Overweight (x) 5 | . 1 5 Average Overweight (x) . | . . . Largest Inventory Capacity 10 | 4 10 10 Average Capacity 8 | 4 6 9 Most Carried 4 | 1 4 4 Average Carried 2 | . 2 3 Final Capacity 10 | 4 10 4 Final Carried 3 | 1 3 3 Class Distribution -------------------- 100% | Mutant Dominant Class ---------------- Mutant | -10/Materials Mutant | -10/Mines Resources | -11 -10 -10 ----------- Run | Scr Mat Min Matter Collected 215 | 173 . 42 Remotely . | . . . Salvage Created 35 | . . 35 Parts 2 | . . 2 Haulers Intercepted . | . . . Recyclers Shooed 1 | . . 1 Parts Field Recycled . | . . . Retrieved Matter . | . . . Parts Self-Destructed . | . . . Prevented . | . . . Kills | -11 -10 -10 ------- Run | Scr Mat Min Combat Hostiles Destroyed 8 | . . 8 AOE 8 | . . 8 Classes Destroyed 2 | . . 2 Worker 1 | . . 1 Assembled 8 | . . 8 Best Kill Streak 8 | . . 8 Combat Bots Only 8 | . . 8 Max Kills in Single Turn 2 | . . 2 Gunslinging . | . . . Exploded 2 | . . 2 Melee . | . . . Uniques/NPCs Destroyed . | . . . Combat | -11 -10 -10 -------- Run | Scr Mat Min Damage Taken 787 | . . 787 Core 259 | . . 259 Absorbed by Shields . | . . . Core Remaining (%) 100 | 100 . . Volleys Fired 11 | . 1 10 Largest 2 | . 2 2 Hottest 80 | . 80 80 Shots Fired 18 | . 2 16 Gun 7 | . 1 6 Cannon 3 | . 1 2 Launcher 8 | . . 8 Special . | . . . Kinetic 7 | . 1 6 Thermal 3 | . 1 2 Explosive 8 | . . 8 Electromagnetic . | . . . Robot Hit Streak 4 | . . 4 Robot Miss Streak 2 | . 2 2 Penetration Max . | . . . Secondary Targets . | . . . Shots Hit Robots 8 | . . 8 Core Hits 21 | . . 21 Critical Hits . | . . . Critical Kills . | . . . Critical Parts Destroyed . | . . . Melee Attacks . | . . . Impact . | . . . Slashing . | . . . Piercing . | . . . Sneak Attacks . | . . . Combat Hostiles . | . . . Follow-up Attacks . | . . . Damage Inflicted 764 | . 18 746 Guns 43 | . . 43 Cannons 53 | . 18 35 Explosions 668 | . . 668 Melee . | . . . Ramming . | . . . Kinetic 43 | . . 43 Thermal 53 | . 18 35 Explosive 668 | . . 668 Electromagnetic . | . . . Impact . | . . . Slashing . | . . . Piercing . | . . . Highest Corruption . | . . . Average Corruption . | . . . Corruption Purged . | . . . Overload Shots . | . . . Overflow Damage 35 | . . 35 Projectiles . | . . . Explosions 35 | . . 35 Melee . | . . . Knockbacks . | . . . Impact . | . . . Kinetic . | . . . Secondary . | . . . Self-Inflicted Damage 120 | . . 120 Shots 4 | . . 4 Rammed . | . . . Targets Rammed . | . . . Kicked . | . . . Crushed . | . . . Highest Temperature 40 | . 40 40 Average Temperature 16 | . 20 15 Received Heat Transfer . | . . . Siege Activations . | . . . Robots Corrupted . | . . . Combat Hostiles . | . . . Parts Fried . | . . . Impact Corruptions . | . . . Robots Melted . | . . . Combat Hostiles . | . . . Parts Melted . | . . . Heat Transferred 111 | . 37 74 Parts Sabotaged . | . . . Parts Stolen . | . . . Parts Stripped . | . . . Power Chain Reactions . | . . . Missiles Intercepted . | . . . Alert | -11 -10 -10 ------- Run | Scr Mat Min Peak Influence 25 | . 15 25 Average Influence 6 | . . 9 Maximum Alert Level . | . . . Low Security (%) 100 | . . . Level 1 . | . . . Level 2 . | . . . Level 3 . | . . . Level 4 . | . . . Level 5 . | . . . High Security . | . . . Max Security . | . . . Squads Dispatched 1 | . 1 . Investigation 1 | . 1 . Extermination . | . . . Reinforcement . | . . . Assault . | . . . Garrison . | . . . Intercept . | . . . Construction Impeded . | . . . Haulers Reinforced . | . . . Stealth | -11 -10 -10 --------- Run | Scr Mat Min Distress Signals 1 | . 1 . Communications Jammed . | . . . Distress Signals . | . . . Times Spotted 22 | . 4 18 Peak Tracking Total 10 | . 7 10 Tactical Retreats 1 | . . 1 Traps | -11 -10 -10 ------- Run | Scr Mat Min Traps Triggered 1 | . 1 . Indirectly . | . . . Trap Hack Attempts . | . . . Triggered . | . . . Disarmed . | . . . Reprogrammed . | . . . Reused . | . . . Traps Extracted . | . . . Installed . | . . . Triggered . | . . . Machines | -11 -10 -10 ---------- Run | Scr Mat Min Machines Disabled . | . . . Max in Single Turn . | . . . Machines Sabotaged . | . . . Garrisons Compromised . | . . . Overloaded Fab Kills . | . . . Fab Network Shutdowns . | . . . Hacking | -11 -10 -10 --------- Run | Scr Mat Min Machines Accessed . | . . . Terminals . | . . . Fabricators . | . . . Repair Stations . | . . . Recycling Units . | . . . Scanalyzers . | . . . Garrison Access . | . . . Total Hacks . | . . . Successful . | . . . Failed . | . . . Catastrophic . | . . . Database Lockouts . | . . . Manual . | . . . Terminals . | . . . Fabricators . | . . . Repair Stations . | . . . Recycling Units . | . . . Scanalyzers . | . . . Garrison Access . | . . . Terminal Hacks . | . . . Fabricator Hacks . | . . . Repair Station Hacks . | . . . Recycling Unit Hacks . | . . . Scanalyzer . | . . . Garrison Access Hacks . | . . . Unauthorized Hacks . | . . . Terminals . | . . . Fabricators . | . . . Repair Stations . | . . . Recycling Units . | . . . Scanalyzers . | . . . Garrison Access . | . . . Data Cores Recovered . | . . . Used . | . . . Hacking Detections . | . . . Full Trace Events . | . . . Feedback Events . | . . . Feedback Blocked . | . . . Robot Schematics Acquired . | . . . Robots Built . | . . . Matter . | . . . Time . | . . . Total Robot Build Rating . | . . . Part Schematics Acquired . | . . . Parts Built . | . . . Matter . | . . . Time . | . . . Total Part Build Rating . | . . . Parts Repaired . | . . . Time . | . . . Parts Recycled . | . . . Recycled Matter . | . . . Retrieved Matter . | . . . Retrieved Components . | . . . Parts Scanalyzed . | . . . Part Schematics Acquired . | . . . Parts Damaged . | . . . Bothacking | -11 -10 -10 ------------ Run | Scr Mat Min Used RIF Installer . | . . . Robots Hacked . | . . . Non-combat . | . . . Combat . | . . . Robot Hacks Applied . | . . . Relay Couplers Released . | . . . Robots Rewired . | . . . Allies Hacked . | . . . Hacks Repelled . | . . . Allies | -11 -10 -10 -------- Run | Scr Mat Min Total Allies . | . . . Largest Group . | . . . Highest-Rated Group . | . . . Highest-Rated Ally . | . . . Total Orders . | . . . Ally Attacks . | . . . Total Damage . | . . . Kills . | . . . Allies Corrupted . | . . . Allies Melted . | . . . Intel | -11 -10 -10 ------- Run | Scr Mat Min Robot Analysis Total . | . . . Derelict Logs Recovered 1 | . . 1 Drone Launches . | . . . Drone Recoveries . | . . . Exploration | -11 -10 -10 ------------- Run | Scr Mat Min Turns Passed 391 | 31 101 259 Spaces Moved 344 | 45 135 164 Core 176 | 43 111 22 Treads . | . . . Legs 168 | 2 24 142 Wheels . | . . . Hover . | . . . Flight . | . . . Fastest Speed 50 | 50 50 50 Average Speed 99 | 53 67 138 Slowest Speed 300 | 120 150 300 Overloaded Moves . | . . . Propulsion Burnouts . | . . . Robots Hopped . | . . . Cave-ins Triggered . | . . . Exploration Rate (%) 29 | 4 38 46 Regions Visited 2 Branch Regions 1 Pre-discovered Areas 1 | . . 1 Known Exits Taken . | . . . Unknown Exits Taken 2 | 1 1 . Scrap Searched 1 | . . 1 Spaces Dug . | . . . Terrain Destroyed 70 | . . 70 Melee . | . . . Projectile . | . . . AOE 70 | . . 70 Actions | -11 -10 -10 --------- Run | Scr Mat Min Total 374 | 49 142 183 Wait 4 | . . 4 Move 342 | 44 134 164 Hop . | . . . Pick Up 6 | 1 4 1 Fast Attach 4 | 4 . . Attach 4 | . 2 2 Detach 1 | . . 1 Swap 2 | . 1 1 Drop . | . . . Fire 11 | . 1 10 Melee . | . . . Ram . | . . . Kick . | . . . Crush . | . . . Escape Stasis . | . . . Rewire . | . . . Trap . | . . . Miscellaneous . | . . . Route ------- -11/Scrapyard -10/Materials -10/Mines (discovered 1 exit: [*Mat]) History --------- Turn | Location | Event 16 | -11/Scrapyard | Discovered new exit (range 15) 32 | -11/Scrapyard | Entered Materials 124 | -10/Materials | Discovered new exit (range 7) 133 | -10/Materials | Entered Mines 216 | -10/Mines | Discovered new exit (range 7) 301 | -10/Mines | Received a Rocket Launcher from a helpful Derelict 305 | -10/Mines | Build established: Mutant 336 | -10/Mines | Assembled infested the area 371 | -10/Mines | Core integrity fell below 50% 378 | -10/Mines | Core integrity fell below 20% 386 | -10/Mines | Destroyed 8 combat bots 392 | -10/Mines | Destroyed self with Rocket Launcher Last Messages --------------- 00365_ as-13149 destroyed. 00365_ as-38534 destroyed. 00370_ C-30 ARC bursts open, deploying its payload. 00370_ D-53 Grenadier unfolds itself. 00370_ Aluminum Leg destroyed. 00372_ The unstable cave ceiling collapses. 00372_ Grenade Launcher destroyed. 00372_ Ion Engine destroyed. 00374_ The unstable cave ceiling collapses. 00375_ Aluminum Leg destroyed. 00379_ The unstable cave ceiling collapses. 00391_ Searching scrap... 00391_ Found 21 Matter. 00391_ Found Ion Engine. 00391_ Found Lgt. Cannon. 00391_ Found Wheel. 00392_ Acquired 21 matter. 00392_ Lgt. Assault Rifle destroyed. 00392_ System corrupted by crushing effect (+3). 00392_ Knocked back. Map ----- +----------------------------------------------------+ | ???????????????????????????????? | | ???????????????????????????????? | | ???????????????????????????????? | | ???????????????????????????????? | | ???????????????????????????????? | | ???????????????????????????????? | | ???????????????????????????????? | | ???????????????????????????????? | | ???????????????????????????????? | | ???????????????????????????????? | | ???????????????????????????????? | | ???????????????????????????????? | | ???????????????????????????????? | | ???????????????????????????????? | | ???????????????????????????????? | | ????????????????? ????????????? | | ???????????????? ???????????? | | ??????????????? ????????????? | | ?????????????? ??????????????# | | ????????????? ??????????????## | | ???##????????a ??????????????## | | ??## #?????? #??????????????## | | ??# #??##aa#?????????????## | | ??# # #?????????????# | | ???# ]a #?????##??????# " | | ????# @ a #????? ??????## "% | | ????## * ##?????# ???????## " | | ?????# ######????# #???????# | | ?????# ##???# #???????# | | ????## #???# #??###### | | ????# !%| ##??# #### | | ???# ! #?## ## | | ???# ### ### | | ???## ##?## ## # # | | ????###????## # | | ????????????# ## | | ????????????# # | | ????????????# # | | ?????????# ### # # | | ????????# ##?## ### | | ??????# #???# ###?? | | ?????# ## #???#### ??? | | ????# ###?# #??????######?? | | ????# #????# #?????????????? | | ????## ?????# #?????????????? | | ?????## ??????# #?????????????? | | ??????#???????# #?????????????? | | ??????????????# #?????????????? | | ??????????????# ??????????????? | | ??????????????# ??????????????? | +----------------------------------------------------+ Best States ------------- Heat Dissipation 25 Energy Generation 10 Energy Capacity 250 Matter Stores 233 Matter Capacity 300 Sight Range 16 Terrain Scan Density 10 Evasion (%) 50 Item Schematics ----------------- None Robot Schematics ------------------ None Fabricated ------------ Nothing Alien Tech Used ----------------- None Achievements -------------- None Challenges ------------ None Game ------ Seed MissileArmageddonShotgun Manual? 0 Play Time 00:04:36 Cumulative 115.7 hours Start 2019.11.05 @ 09:55:49 End 2019.11.05 @ 09:58:59 Sessions 1 Manual Loads 0 Difficulty Rogue Special Mode None Game No. 205 Rogue 205 Adventurer 0 Explorer 0 Win Type - Total 0 Types 0/0/0/0/0/0/0 Lore% 33 Gallery% 50 Achievement% 34 Wizard Run 0 Options --------- ASCII 0 Keyboard 0 Movement Mouse Keybinds 0 Fullscreen 1 Font 18/SmallcapsGlow Map View 76x50 Tactical HUD 1 Map Filters NONE Filters NONE Steam 1 RUN: 2e32af9a-20f9-4a50-859c-1d26c7a60c5a